bitfinex/quotes_SOLUSD_20250619
["timestamp","ask_amount","ask_price","bid_price","bid_amount"]
[1750350607283,7.28222381,144.07,144.01,6.94396222]
[1750350607284,7.28222381,144.04,144.01,6.94396222]
[1750350607691,7.28222381,144.06,144.01,14.22618603]
[1750350607861,7.28222381,144.07,144.03,7.28222381]
[1750350608483,7.28222381,144.07,144.03,14.22474865]
[1750350609362,7.28222381,144.06,144.03,6.94252484]
[1750350612067,7.28222381,144.07,144.03,6.94252484]
[1750350612269,7.28222381,144.07,144.03,14.22474865]
[1750350618888,34.6907,144.08,144.03,14.22474865]
[1750350619072,7.28222381,144.07,144.03,14.22474865]
[1750350620703,41.63131007,144.08,144.03,14.22474865]
[1750350620993,7.28222381,144.07,144.01,24.30386778]
[1750350621310,28.1,144.08,144.06,7.28222381]
[1750350621599,28.1,144.08,144.05,7.28222381]
[1750350621897,7.28222381,144.09,144.05,7.28222381]
[1750350622096,25.93187267,144.1,144.06,7.28222381]
[1750350622794,32.87153478,144.1,144.06,7.28222381]
[1750350623002,32.87153478,144.1,144.06,14.2236862]
[1750350623484,25.93187267,144.1,144.06,14.2236862]
[1750350624099,25.93187267,144.1,144.06,6.94146239]
[1750350624403,32.87164113,144.1,144.05,14.22404923]
[1750350624701,7.28222381,144.09,144.05,14.22404923]
[1750350625480,14.22237443,144.09,144.05,6.94182542]
[1750350626507,7.28222381,144.09,144.05,6.94182542]
[1750350626711,7.28222381,144.06,144.02,87.7]
[1750350626886,7.28222381,144.06,144.02,6.94348007]
[1750350627207,7.28222381,144.04,143.99,14.22715054]
[1750350627701,7.28222381,144.04,144.01,6.94396222]
[1750350628002,14.22445318,144.05,144.01,6.94396222]
[1750350628605,14.22445318,144.05,144.0,14.22646504]
[1750350628803,14.22445318,144.05,143.99,14.22692666]
[1750350628804,7.28222381,144.03,143.99,14.22692666]
[1750350629599,7.28222381,144.01,143.98,6.94522455]
[1750350630306,7.28222381,144.02,143.98,6.94522455]
[1750350631391,7.28222381,144.01,143.97,32.94572801]
[1750350632004,7.28222381,143.98,143.94,14.22938837]
[1750350632519,7.28222381,143.97,143.93,14.22983424]
[1750350633009,39.50974711,143.99,143.94,11.40974711]
[1750350633177,11.40974711,143.98,143.94,11.40974711]
[1750350633525,11.40974711,143.96,143.93,6.94761043]
[1750350633818,11.40974711,143.95,143.92,32.94811587]
[1750350634220,6.94555941,143.98,143.92,44.35786298]
[1750350634221,11.40974711,143.96,143.92,44.35786298]
[1750350634390,11.40974711,143.95,143.9,18.35901743]
[1750350634593,11.40974711,143.95,143.91,11.40974711]
[1750350635596,11.40974711,143.95,143.91,18.35809233]
[1750350635921,18.64964886,143.98,143.93,11.40974711]
[1750350636098,18.64964886,143.98,143.91,6.94834522]
[1750350636099,30.05939597,143.98,143.94,11.40974711]
[1750350637219,30.05939597,143.98,143.91,6.94834522]
[1750350637220,11.40974711,143.97,143.91,17.37196859]
[1750350637399,11.40974711,143.97,143.92,11.40974711]
[1750350637917,11.40974711,143.97,143.93,11.40974711]
[1750350638715,11.40974711,143.97,143.93,18.35729889]
[1750350638904,30.05939597,143.98,143.94,11.40974711]
[1750350639921,37.00480763,143.98,143.94,11.40974711]
[1750350640322,11.40974711,143.97,143.93,18.35729889]
[1750350643527,18.35566576,143.97,143.93,18.35729889]
[1750350644223,18.35566576,143.97,143.93,11.40974711]
[1750350645832,11.40974711,143.96,143.92,6.94809541]
[1750350646028,11.40974711,143.96,143.91,18.35820924]
[1750350646624,11.40974711,143.95,143.91,18.35820924]
[1750350647028,6.9458915,143.97,143.91,6.94846213]
[1750350647226,11.40974711,143.94,143.9,44.35889546]
[1750350648010,11.40974711,143.93,143.9,6.94914835]
[1750350648427,6.94766135,143.94,143.88,6.9502363]
[1750350648725,18.94164711,143.96,143.92,11.40974711]
[1750350648927,14.47827966,143.96,143.92,11.40974711]
[1750350649100,25.88802677,143.96,143.92,11.40974711]
[1750350649301,25.88802677,143.96,143.88,24.32582707]
[1750350649610,18.94164711,143.96,143.92,11.40974711]
[1750350649804,30.05939597,143.98,143.94,11.40974711]
[1750350650214,30.05939597,143.98,143.94,18.35688499]
[1750350652810,37.00482755,143.98,143.94,18.35688499]
[1750350653437,30.05939597,143.98,143.94,18.35688499]
[1750350653621,23.78302461,143.99,143.95,11.40974711]
[1750350653815,23.78302461,143.99,143.98,11.40974711]
[1750350653816,16.8378758,143.99,143.98,11.40974711]
[1750350654221,16.8378758,143.99,143.94,6.94713788]
[1750350654419,16.8378758,143.99,143.93,26.0]
[1750350654420,16.8378758,143.99,143.97,11.40974711]
[1750350655408,16.8378758,143.99,143.96,6.94606525]
[1750350655740,16.8378758,143.99,143.97,11.40974711]
[1750350656644,16.8378758,143.99,143.94,24.31568708]
[1750350656827,16.8378758,143.99,143.97,11.40974711]
[1750350661155,16.8378758,143.99,143.94,6.94733916]
[1750350661351,16.8378758,143.99,143.97,11.40974711]
[1750350662650,16.8378758,143.99,143.96,18.35599123]
[1750350663860,39.50974711,143.98,143.93,120.6473786]
[1750350664161,39.50974711,143.98,143.94,11.40974711]
[1750350664323,28.1,143.98,143.95,11.40974711]
[1750350664635,39.50974711,143.98,143.94,11.40974711]
[1750350668728,11.40974711,143.91,143.88,6.95002194]
[1750350669064,11.40974711,143.93,143.89,11.40974711]
[1750350669729,11.40974711,143.93,143.89,18.35939715]
[1750350670432,11.40974711,143.92,143.89,6.94965004]
[1750350670632,11.40974711,143.92,143.88,18.35976334]
[1750350671867,11.40974711,143.91,143.87,18.36018337]
[1750350673537,47.75344711,143.92,143.88,11.40974711]
[1750350674026,41.08734711,143.92,143.88,11.40974711]
[1750350674230,16.60152021,143.93,143.89,11.40974711]
[1750350674442,11.40974711,143.92,143.88,11.40974711]
[1750350675060,18.74152736,143.92,143.88,11.40974711]
[1750350675234,11.40974711,143.91,143.88,6.9500896]
[1750350675657,14.00487192,143.92,143.88,18.35983671]
[1750350675957,18.74151576,143.92,143.88,18.35983671]
[1750350676160,16.14639095,143.92,143.88,18.35983671]
[1750350676341,16.14639095,143.92,143.87,6.95071939]
[1750350676545,18.74039396,143.92,143.88,11.40974711]
[1750350677154,16.14639095,143.92,143.88,11.40974711]
[1750350677354,4.73664384,143.92,143.89,11.40974711]
[1750350677534,39.52974711,143.93,143.89,11.40974711]
[1750350677734,39.52974711,143.93,143.87,6.95071939]
[1750350677938,39.52974711,143.93,143.89,11.40974711]
[1750350678655,39.52974711,143.93,143.87,6.95071939]
[1750350678876,39.52974711,143.93,143.89,11.40974711]
[1750350679085,39.52974711,143.93,143.89,18.35917992]
[1750350679481,28.12,143.93,143.89,18.35917992]
[1750350679691,39.52974711,143.93,143.89,18.35917992]
[1750350680681,32.79334886,143.96,143.92,11.40974711]
[1750350680891,5.92,143.96,143.95,11.40974711]
[1750350681068,5.92,143.96,143.95,18.35660365]
[1750350681267,5.92,143.96,143.95,11.40974711]
[1750350681584,5.92,143.96,143.93,18.35756896]
[1750350681959,5.92,143.96,143.92,32.94822371]
[1750350682175,17.32974711,143.96,143.92,44.35797082]
[1750350682616,22.07366049,143.96,143.92,44.35797082]
[1750350683284,10.66391338,143.96,143.92,44.35797082]
[1750350683466,5.92,143.96,143.93,11.40974711]
[1750350683666,10.66377561,143.96,143.93,11.40974711]
[1750350684091,10.66334995,143.96,143.93,11.40974711]
[1750350684587,10.66334995,143.96,143.93,18.3574637]
[1750350684588,5.92,143.96,143.93,18.3574637]
[1750350685692,29.01081916,143.96,143.92,44.35783923]
[1750350685874,24.27617416,143.96,143.92,18.35783923]
[1750350686068,12.86642705,143.96,143.92,18.35783923]
[1750350686368,24.27617416,143.96,143.92,18.35783923]
[1750350687184,24.27617416,143.96,143.92,11.40974711]
[1750350688189,24.27617416,143.96,143.92,18.35803254]
[1750350688690,17.32974711,143.96,143.92,18.35803254]
[1750350688886,10.65546492,143.96,143.92,18.35803254]
[1750350689090,17.32974711,143.96,143.92,18.35803254]
[1750350689293,22.06521203,143.96,143.92,18.35803254]
[1750350689792,17.32974711,143.96,143.92,18.35803254]
[1750350689988,22.06521203,143.96,143.92,18.35803254]
[1750350691890,10.65546492,143.96,143.94,11.40974711]
[1750350692070,5.92,143.96,143.94,11.40974711]
[1750350692764,5.92,143.96,143.94,18.35705363]
[1750350693173,5.92,143.96,143.94,11.40974711]
[1750350696192,5.92,143.96,143.94,18.35703982]
[1750350697201,5.92,143.96,143.94,6.94729271]
[1750350697379,5.92,143.96,143.94,18.35703982]
[1750350699404,51.6697198,143.98,143.94,18.35703982]
[1750350700200,58.61512965,143.98,143.94,18.35703982]
[1750350701402,47.20538254,143.98,143.94,18.35703982]
[1750350701615,58.61512965,143.98,143.94,18.35703982]
[1750350702107,58.61512965,143.98,143.93,11.40974711]
[1750350702607,58.61512965,143.98,143.91,17.37192435]
[1750350702822,11.40974711,143.97,143.93,11.40974711]
[1750350703787,11.40974711,143.96,143.93,26.0]
[1750350704881,11.40974711,143.96,143.9,6.94927032]
[1750350704882,11.40974711,143.95,143.9,6.94927032]
[1750350705209,11.40974711,143.94,143.9,18.35901743]
[1750350706619,39.50974711,143.95,143.9,18.35901743]
[1750350706909,39.50974711,143.95,143.91,11.40974711]
[1750350707287,28.1,143.95,143.92,11.40974711]
[1750350708320,28.1,143.95,143.92,18.35779528]
[1750350709403,28.1,143.95,143.92,6.94804817]
[1750350709788,46.45666452,143.95,143.9,11.40974711]
[1750350710384,11.40974711,143.94,143.9,11.40974711]
[1750350710802,11.40974711,143.94,143.9,6.94904282]
[1750350710993,14.00670236,143.94,143.9,6.94904282]
[1750350711314,20.95404299,143.94,143.9,6.94904282]
[1750350711605,18.75049528,143.93,143.89,18.35931085]
[1750350711819,18.75049528,143.93,143.89,6.94956374]
[1750350711992,16.15404611,143.92,143.88,44.35976315]
[1750350712196,4.744299,143.92,143.88,44.35976315]
[1750350712427,4.74431849,143.92,143.89,11.40974711]
[1750350712591,4.74431849,143.92,143.9,11.40974711]
[1750350712919,18.75188821,143.93,143.89,18.35926506]
[1750350713116,14.00756972,143.93,143.89,18.35926506]
[1750350713293,18.75168853,143.93,143.89,18.35926506]
[1750350713612,14.00756972,143.93,143.89,18.35926506]
[1750350713797,7.34299642,143.93,143.89,6.94951795]
[1750350713999,14.00756972,143.93,143.89,18.35926506]
[1750350714823,28.1,143.95,143.92,11.40974711]
[1750350715108,4.74864046,143.94,143.92,11.40974711]
[1750350715500,4.74864046,143.94,143.91,18.35834628]
[1750350716726,4.74864046,143.94,143.91,6.94859917]
[1750350716922,4.74864046,143.94,143.91,18.35834628]
[1750350718131,11.40974711,143.95,143.91,18.35834628]
[1750350718422,7.34724097,143.95,143.92,11.40974711]
[1750350719010,4.74921256,143.94,143.91,18.35834628]
[1750350719322,7.34811627,143.94,143.91,6.94859917]
[1750350719526,7.34811627,143.94,143.91,18.35834628]
[1750350720635,11.40974711,143.92,143.88,113.7]
[1750350720803,11.40974711,143.91,143.87,87.7]
[1750350721007,16.15938074,143.9,143.83,6.95265243]
[1750350721216,18.76000136,143.89,143.85,11.40974711]
[1750350721536,11.40974711,143.89,143.85,11.40974711]
[1750350721741,14.01036773,143.89,143.85,11.40974711]
[1750350721913,11.40974711,143.89,143.85,11.40974711]
[1750350722232,11.40974711,143.88,143.85,6.95149538]
[1750350722832,11.40974711,143.87,143.83,11.40974711]
[1750350723019,11.40974711,143.86,143.82,18.36288297]
[1750350723222,35.45368507,143.88,143.8,93.62]
[1750350723223,11.40974711,143.85,143.8,93.62]
[1750350723419,7.35416186,143.87,143.77,41.43921956]
[1750350723420,11.40974711,143.83,143.77,41.43921956]
[1750350723738,11.40974711,143.82,143.78,18.36481735]
[1750350724300,28.1,143.84,143.78,6.95507024]
[1750350724519,28.1,143.84,143.78,18.36481735]
[1750350724720,1.6378,143.86,143.82,11.40974711]
[1750350724909,7.34384961,143.88,143.85,11.40974711]
[1750350725113,18.75092102,143.9,143.86,11.40974711]
[1750350725426,11.40974711,143.89,143.85,11.40974711]
[1750350726724,41.17844711,143.91,143.87,11.40974711]
[1750350726920,13.05303988,143.92,143.83,24.33428352]
[1750350726921,6.1046,143.92,143.89,11.40974711]
[1750350727317,6.1046,143.92,143.85,37.40974711]
[1750350727669,17.51434711,143.92,143.88,11.40974711]
[1750350728210,17.51434711,143.92,143.88,18.35992648]
[1750350728912,11.40974711,143.9,143.87,6.95052786]
[1750350729524,13.05291056,143.92,143.87,6.95052786]
[1750350729738,11.40974711,143.9,143.87,6.95052786]
[1750350730136,13.05291056,143.92,143.87,11.40974711]
[1750350730431,11.40974711,143.91,143.87,11.40974711]
[1750350731339,11.40974711,143.91,143.87,18.36019597]
[1750350731738,13.05291056,143.92,143.87,18.36019597]
[1750350731927,11.40974711,143.91,143.87,18.36019597]
[1750350735181,11.40974711,143.9,143.86,18.36056399]
[1750350735441,11.40974711,143.87,143.82,43.38276405]
[1750350735615,11.40974711,143.87,143.83,11.40974711]
[1750350735819,11.40974711,143.87,143.82,43.38276405]
[1750350736020,11.40974711,143.87,143.83,11.40974711]
[1750350736222,11.40974711,143.88,143.84,11.40974711]
[1750350736449,11.40974711,143.88,143.84,18.36160889]
[1750350738148,11.40974711,143.88,143.84,6.95186178]
[1750350738451,18.36006338,143.88,143.84,18.36160889]
[1750350739462,11.40974711,143.88,143.84,6.95186178]
[1750350739630,11.40974711,143.88,143.84,18.36160889]
[1750350740659,39.52974711,143.89,143.85,11.40974711]
[1750350741229,39.52974711,143.89,143.85,18.36107705]
[1750350742126,39.52974711,143.89,143.85,6.95132994]
[1750350742328,39.52974711,143.89,143.85,18.36107705]
[1750350743266,39.52974711,143.89,143.82,24.33589991]
[1750350743449,39.52974711,143.89,143.85,11.40974711]
[1750350744140,46.47955664,143.89,143.82,24.33589991]
[1750350744468,11.40974711,143.88,143.84,11.40974711]
[1750350745440,11.40974711,143.88,143.85,6.95168578]
[1750350747963,35.06975465,143.89,143.85,6.95168578]
[1750350748155,11.40974711,143.88,143.85,6.95168578]
[1750350749967,11.40974711,143.88,143.82,24.33589991]
[1750350750185,11.40974711,143.88,143.84,11.40974711]
[1750350750661,11.40974711,143.86,143.82,18.36288297]
[1750350751041,11.40974711,143.86,143.83,11.40974711]
[1750350751364,11.40974711,143.86,143.82,6.95313586]
[1750350751574,11.40974711,143.86,143.83,18.36217792]
[1750350752568,11.40974711,143.84,143.78,87.7]
[1750350752752,11.40974711,143.83,143.79,11.40974711]
[1750350753239,11.40974711,143.82,143.78,18.36481735]
[1750350753668,11.40974711,143.82,143.78,6.95507024]
[1750350754180,18.36298209,143.82,143.78,6.95507024]
[1750350754393,11.40974711,143.8,143.77,31.00570207]
[1750350755873,11.40974711,143.8,143.77,24.05034138]
[1750350756070,11.40974711,143.79,143.77,24.05034138]
[1750350756775,11.40974711,143.78,143.77,24.05034138]
[1750350756951,30.05939597,143.8,143.77,24.05034138]
[1750350757149,11.40974711,143.8,143.77,24.05034138]
[1750350757354,58.49902193,143.81,143.77,24.05034138]
[1750350757661,11.40974711,143.8,143.77,24.05034138]
[1750350758056,11.40974711,143.8,143.77,31.00574952]
[1750350759075,34.04,143.81,143.77,42.41549663]
[1750350759257,34.04,143.81,143.77,31.00574952]
[1750350759586,5.92,143.81,143.78,18.36475344]
[1750350760291,5.92,143.81,143.79,11.40974711]
[1750350760480,5.92,143.81,143.78,18.36475344]
[1750350760876,5.92,143.81,143.77,31.00568943]
[1750350761062,5.92,143.81,143.78,11.40974711]
[1750350762192,5.92,143.81,143.77,31.00568943]
[1750350762487,5.92,143.81,143.78,6.95469067]
[1750350762790,5.92,143.81,143.78,18.36443778]
[1750350763767,5.92,143.81,143.78,6.95469067]
[1750350764187,5.92,143.81,143.78,18.36443778]
[1750350766291,5.92,143.81,143.78,6.95469067]
[1750350766682,5.92,143.81,143.78,18.36443778]
[1750350767795,5.92,143.81,143.78,6.95469067]
[1750350768001,5.92,143.81,143.78,18.36443778]
[1750350770196,17.32974711,143.81,143.77,42.41545737]
[1750350770367,17.32974711,143.81,143.77,31.00571026]
[1750350770898,11.40974711,143.79,143.77,24.05034138]
[1750350771268,11.40974711,143.78,143.77,24.05034138]
[1750350771688,11.40974711,143.79,143.77,24.05034138]
[1750350772583,24.28363571,143.81,143.77,24.05034138]
[1750350772789,5.92,143.81,143.78,18.36441612]
[1750350773289,5.92,143.81,143.78,6.95466901]
[1750350774589,5.92,143.81,143.78,18.36441612]
[1750350776383,5.92,143.81,143.77,42.41547676]
[1750350776601,17.32974711,143.81,143.77,42.41547676]
[1750350778299,24.28337518,143.81,143.77,42.41547676]
[1750350779303,17.32974711,143.81,143.77,42.41547676]
[1750350780386,5.92,143.81,143.77,31.00572965]
[1750350780588,5.92,143.81,143.78,11.40974711]
[1750350781703,17.32974711,143.81,143.77,24.05034138]
[1750350782000,11.40974711,143.78,143.77,24.05034138]
[1750350786609,35.09499369,143.79,143.77,24.05034138]
[1750350786913,18.36481735,143.78,143.77,24.05034138]
[1750350788190,11.40974711,143.78,143.77,24.05034138]
[1750350788483,39.54974711,143.79,143.77,24.05034138]
[1750350789008,28.14,143.79,143.77,24.05034138]
[1750350789185,17.32974711,143.81,143.77,31.00580025]
[1750350789385,52.78059854,143.81,143.77,42.41554736]
[1750350789584,45.46974711,143.81,143.77,42.41554736]
[1750350790012,5.92,143.81,143.78,11.40974711]
[1750350790194,5.92,143.81,143.77,31.00580025]
[1750350790391,5.92,143.81,143.77,48.39468527]
[1750350790593,5.92,143.81,143.79,11.40974711]
[1750350791293,5.92,143.81,143.8,18.36385003]
[1750350792817,5.92,143.81,143.77,111.75034138]
[1750350793012,17.32974711,143.81,143.77,35.46008849]
[1750350793520,5.92,143.81,143.78,11.40974711]
[1750350794412,5.92,143.81,143.78,18.36450347]
[1750350795198,5.92,143.81,143.79,11.40974711]
[1750350796120,5.92,143.81,143.78,6.95475636]
[1750350796415,5.92,143.81,143.8,11.40974711]
[1750350800023,5.92,143.81,143.79,6.95426007]
[1750350800024,5.92,143.81,143.79,18.36400718]
[1750350800222,8.52203722,143.81,143.78,18.36465921]
[1750350800798,13.28011043,143.81,143.78,18.36465921]
[1750350800998,8.52203722,143.81,143.78,18.36465921]
[1750350801808,8.52203722,143.81,143.79,11.40974711]
[1750350802012,10.67793891,143.81,143.79,11.40974711]
[1750350802210,5.92,143.81,143.8,11.40974711]
[1750350804035,5.92,143.81,143.8,18.36385003]
[1750350804211,10.24796123,143.84,143.8,18.36385003]
[1750350804404,10.24796123,143.84,143.83,11.40974711]
[1750350804600,17.60596386,143.84,143.83,11.40974711]
[1750350804806,10.24796123,143.84,143.82,11.40974711]
[1750350806431,10.24796123,143.84,143.82,18.36273208]
[1750350807631,10.24796123,143.84,143.83,11.40974711]
[1750350808409,10.24796123,143.84,143.83,18.36239954]
[1750350809837,10.24796123,143.84,143.81,18.36315545]
[1750350810137,10.24796123,143.84,143.82,11.40974711]
[1750350810438,10.24796123,143.84,143.83,11.40974711]
[1750350811521,10.24796123,143.84,143.83,18.36239954]
[1750350812432,10.24796123,143.84,143.83,11.40974711]
[1750350815931,10.24796123,143.84,143.82,11.40974711]
[1750350816134,39.54974711,143.83,143.8,32.95387234]
[1750350816347,39.54974711,143.83,143.8,26.0]
[1750350816516,39.54974711,143.83,143.79,18.36405497]
[1750350817843,39.54974711,143.83,143.77,24.05034138]
[1750350817844,11.40974711,143.8,143.77,24.05034138]
[1750350818043,11.40974711,143.78,143.77,24.05034138]
[1750350818538,30.05939597,143.78,143.77,24.05034138]
[1750350818945,37.38942076,143.78,143.77,24.05034138]
[1750350819723,44.344491,143.78,143.77,24.05034138]
[1750350820245,44.34441894,143.78,143.77,24.05034138]
[1750350821744,41.74952653,143.78,143.77,24.05034138]
[1750350822128,41.74765939,143.78,143.77,24.05034138]
[1750350822334,37.38639056,143.78,143.77,24.05034138]
[1750350822543,34.79258915,143.78,143.77,24.05034138]
[1750350822737,58.23939597,143.78,143.77,24.05034138]
[1750350822950,46.82964886,143.78,143.77,24.05034138]
[1750350823245,39.58974711,143.78,143.77,24.05034138]
[1750350824130,11.40974711,143.78,143.77,24.05034138]
[1750350824339,39.58974711,143.78,143.77,24.05034138]
[1750350824832,65.19446621,143.78,143.77,24.05034138]
[1750350825029,69.9248122,143.78,143.77,24.05034138]
[1750350825236,72.51716332,143.78,143.77,24.05034138]
[1750350826248,72.51676756,143.78,143.77,24.05034138]
[1750350826961,69.92441644,143.78,143.77,24.05034138]
[1750350827258,72.51587084,143.78,143.77,24.05034138]
[1750350827955,69.92441644,143.78,143.77,24.05034138]
[1750350828334,65.19446621,143.78,143.77,24.05034138]
[1750350828738,72.50491238,143.78,143.77,24.05034138]
[1750350829258,67.78536065,143.78,143.77,24.05034138]
[1750350829558,65.19446621,143.78,143.77,24.05034138]
[1750350829760,72.50437355,143.78,143.77,24.05034138]
[1750350831257,121.45198082,143.78,143.77,24.05034138]
[1750350831561,121.45165243,143.78,143.77,24.05034138]
[1750350831972,121.45131681,143.78,143.77,24.05034138]
[1750350832261,110.0415697,143.78,143.77,24.05034138]
[1750350832460,104.86010954,143.78,143.77,24.05034138]
[1750350832848,97.55086621,143.78,143.77,24.05034138]
[1750350834570,56.05939597,143.78,143.77,24.05034138]
[1750350834753,64.21939597,143.78,143.77,24.05034138]
[1750350835272,71.17446621,143.78,143.77,24.05034138]
[1750350836042,64.21939597,143.78,143.77,24.05034138]
[1750350836865,34.16,143.78,143.77,24.05034138]
[1750350837251,5.96,143.78,143.77,24.05034138]
[1750350837453,34.16,143.78,143.77,24.05034138]
[1750350839246,45.56974711,143.78,143.77,24.05034138]
[1750350839669,34.16,143.78,143.77,24.05034138]
[1750350839973,45.56974711,143.78,143.77,24.05034138]
[1750350841970,17.36974711,143.78,143.77,24.05034138]
[1750350842174,34.14,143.78,143.77,24.05034138]
[1750350846873,5.96,143.78,143.77,31.00589538]
[1750350847053,34.14,143.78,143.77,31.00589538]
[1750350848083,5.96,143.78,143.77,42.41564249]
[1750350851687,7.5003,143.83,143.77,59.80452751]
[1750350851861,28.16,143.82,143.81,11.40974711]
[1750350852059,28.16,143.82,143.8,11.40974711]
[1750350852350,11.40974711,143.81,143.77,31.00589538]
[1750350852568,28.18,143.8,143.77,42.41564249]
[1750350852764,28.18,143.8,143.77,31.00589538]
[1750350852962,28.18,143.8,143.77,42.41564249]
[1750350853758,28.18,143.8,143.77,31.00589538]
[1750350853958,28.18,143.8,143.77,42.41564249]
[1750350854485,28.18,143.8,143.78,18.36460075]
[1750350854666,11.40974711,143.83,143.79,11.40974711]
[1750350854875,28.18,143.82,143.79,11.40974711]
[1750350855382,28.18,143.82,143.8,11.40974711]
[1750350855773,46.2673572,143.84,143.8,18.36368555]
[1750350855979,28.18,143.83,143.8,18.36368555]
[1750350856171,28.18,143.82,143.8,18.36368555]
[1750350856365,16.20796123,143.84,143.81,11.40974711]
[1750350856577,44.38796123,143.84,143.82,11.40974711]
[1750350857461,44.38796123,143.84,143.8,6.95393844]
[1750350857663,44.38796123,143.84,143.82,11.40974711]
[1750350858689,44.38796123,143.84,143.82,18.36284259]
[1750350858868,38.42796123,143.84,143.83,11.40974711]
[1750350859064,10.24796123,143.84,143.83,11.40974711]
[1750350860285,10.24796123,143.84,143.83,18.36239954]
[1750350863577,45.1,143.9,143.83,47.15377774]
[1750350863772,5.94,143.91,143.89,18.35904339]
[1750350863965,5.94,143.91,143.9,11.40974711]
[1750350864283,5.94,143.91,143.89,6.94929628]
[1750350864284,5.94,143.91,143.89,18.35904339]
[1750350864993,5.94,143.91,143.89,11.40974711]
[1750350865991,5.94,143.91,143.89,18.35945918]
[1750350867198,5.94,143.91,143.9,11.40974711]
[1750350867663,16.07271066,143.96,143.9,11.40974711]
[1750350867864,16.07271066,143.96,143.89,50.32409527]
[1750350867865,10.13271066,143.96,143.95,11.40974711]
[1750350868079,38.31271066,143.96,143.95,11.40974711]
[1750350868288,38.31271066,143.96,143.94,11.40974711]
[1750350869767,10.13271066,143.96,143.95,11.40974711]
[1750350871192,10.13271066,143.96,143.95,6.94685654]
[1750350871375,10.13271066,143.96,143.95,18.35660365]
[1750350872395,5.94,144.0,143.95,44.35660365]
[1750350872703,5.94,144.0,143.99,11.40974711]
[1750350872873,26.0,144.06,143.99,11.40974711]
[1750350872874,5.94,144.05,143.99,22.81949422]
[1750350873209,5.94,144.05,144.03,11.40974711]
[1750350873494,34.12,144.05,144.04,11.40974711]
[1750350873890,5.94,144.05,144.04,11.40974711]
[1750350874098,5.94,144.05,144.04,18.35226307]
[1750350875004,5.94,144.05,144.04,11.40974711]
[1750350875204,5.94,144.05,144.04,18.35226307]
[1750350877836,28.18,144.07,144.04,18.35226307]
[1750350878187,28.18,144.07,144.05,11.40974711]
[1750350880509,28.18,144.07,144.06,11.40974711]
[1750350880812,10.18611037,144.08,144.06,11.40974711]
[1750350881107,34.1,144.1,144.07,11.40974711]
[1750350881305,34.1,144.1,144.09,11.40974711]
[1750350881509,34.1,144.1,144.08,11.40974711]
[1750350882413,5.94,144.1,144.08,11.40974711]
[1750350884388,5.94,144.1,144.09,11.40974711]
[1750350884590,5.94,144.1,144.06,6.94155213]
[1750350884784,5.94,144.1,144.08,11.40974711]
[1750350885508,5.94,144.1,144.04,32.94218101]
[1750350885810,11.40974711,144.09,144.05,11.40974711]
[1750350886682,6.94028897,144.09,144.05,11.40974711]
[1750350886915,17.34974711,144.1,144.06,11.40974711]
[1750350887808,24.2895556,144.1,144.06,11.40974711]
[1750350889007,12.87980849,144.1,144.06,11.40974711]
[1750350889216,24.2895556,144.1,144.06,11.40974711]
[1750350891208,11.40974711,144.09,144.06,11.40974711]
[1750350891415,11.40974711,144.09,144.02,6.94348007]
[1750350891619,11.40974711,144.09,144.05,11.40974711]
[1750350891620,28.14,144.08,144.05,11.40974711]
[1750350892604,28.14,144.08,144.05,18.35173782]
[1750350893415,28.14,144.08,144.06,11.40974711]
[1750350895923,28.14,144.08,144.05,11.40974711]
[1750350896303,28.14,144.08,144.05,18.35166599]
[1750350898112,28.14,144.08,144.05,11.40974711]
[1750350898493,28.14,144.08,144.05,18.35175108]
[1750350898698,28.14,144.08,144.02,26.0]
[1750350899018,11.40974711,144.07,144.02,32.94326129]
[1750350899211,18.35094221,144.07,144.02,32.94326129]
[1750350899412,11.40974711,144.06,144.02,44.3530084]
[1750350899628,11.40974711,144.06,143.99,34.95458163]
[1750350899629,11.40974711,144.05,144.01,11.40974711]
[1750350899940,39.56974711,144.05,144.01,11.40974711]
[1750350900106,28.16,144.05,144.01,11.40974711]
[1750350900328,28.16,144.05,144.02,11.40974711]
[1750350900516,28.16,144.05,144.01,11.40974711]
[1750350900517,39.56974711,144.05,144.01,11.40974711]
[1750350900720,39.56974711,144.05,144.01,37.40974711]
[1750350901010,39.56974711,144.05,144.01,26.0]
[1750350901220,39.56974711,144.05,144.01,37.40974711]
[1750350901418,39.56974711,144.05,143.99,24.30706125]
[1750350901419,11.40974711,144.04,144.0,26.0]
[1750350901730,35.1020593,144.05,143.99,18.35467384]
[1750350901731,11.40974711,144.03,143.99,18.35467384]
[1750350903636,11.40974711,144.04,144.0,11.40974711]
[1750350904315,39.56974711,144.05,143.99,6.94492673]
[1750350904506,46.51184816,144.05,144.01,11.40974711]
[1750350904705,11.40974711,144.04,144.0,44.35379421]
[1750350905312,39.56974711,144.05,144.02,11.40974711]